[Event "Early-Titled-Tuesday-Blitz-July-09-2024"]
[Site "Chess.com"]
[Date "2024.07.09"]
[Round "6"]
[White "Chess_master1982"]
[Black "le-castor-faineant"]
[Result "1-0"]
[WhiteElo "2644"]
[BlackElo "2324"]
[TimeControl "180+1"]
[EndTime "9:08:01 PDT"]
[Termination "Chess_master1982 won on time"]

1. e4 {[%clk 0:03:00.9]} 1... e5 {[%clk 0:02:57.4]} 2. f4 {[%clk 0:03:00.6]}
2... d5 {[%clk 0:02:56.8]} 3. exd5 {[%clk 0:03:00.5]} 3... e4 {[%clk 0:02:57]}
4. d3 {[%clk 0:03:00.3]} 4... Nf6 {[%clk 0:02:54.9]} 5. dxe4 {[%clk 0:03:00.6]}
5... Nxe4 {[%clk 0:02:54.4]} 6. Nf3 {[%clk 0:03:01.2]} 6... Bc5 {[%clk
0:02:52.9]} 7. Qe2 {[%clk 0:03:01.5]} 7... Qe7 {[%clk 0:02:46.4]} 8. Nc3 {[%clk
0:03:00.1]} 8... f5 {[%clk 0:02:30.3]} 9. Nxe4 {[%clk 0:02:50]} 9... fxe4 {[%clk
0:02:29.4]} 10. Ne5 {[%clk 0:02:50.6]} 10... O-O {[%clk 0:02:25]} 11. Be3 {[%clk
0:02:50.3]} 11... Nd7 {[%clk 0:02:16.8]} 12. Nxd7 {[%clk 0:02:38.4]} 12... Bxd7
{[%clk 0:02:17.7]} 13. O-O-O {[%clk 0:02:39]} 13... Bd6 {[%clk 0:01:50]} 14. g3
{[%clk 0:02:37.7]} 14... b5 {[%clk 0:01:41.9]} 15. Kb1 {[%clk 0:02:35.8]} 15...
a5 {[%clk 0:01:41.7]} 16. Qd2 {[%clk 0:02:33.6]} 16... a4 {[%clk 0:01:37.4]} 17.
Be2 {[%clk 0:02:26.9]} 17... b4 {[%clk 0:01:33.7]} 18. Bc4 {[%clk 0:02:25.6]}
18... Rfb8 {[%clk 0:01:32.8]} 19. Bd4 {[%clk 0:02:22.3]} 19... Bb5 {[%clk
0:01:16.5]} 20. Qe2 {[%clk 0:02:18.7]} 20... Bd7 {[%clk 0:01:08.6]} 21. Rhe1
{[%clk 0:02:16.8]} 21... Re8 {[%clk 0:01:04.5]} 22. Be5 {[%clk 0:02:11.4]} 22...
b3 {[%clk 0:00:58.1]} 23. cxb3 {[%clk 0:02:09.4]} 23... axb3 {[%clk 0:00:58.1]}
24. Bxb3 {[%clk 0:02:08.7]} 24... Kh8 {[%clk 0:00:47.4]} 25. Qxe4 {[%clk
0:02:04.4]} 25... Qf7 {[%clk 0:00:36]} 26. Bc2 {[%clk 0:02:02.2]} 26... Qh5
{[%clk 0:00:31]} 27. Qe2 {[%clk 0:01:55.8]} 27... Bg4 {[%clk 0:00:29.2]} 28. Qd2
{[%clk 0:01:41.9]} 28... Bxd1 {[%clk 0:00:27.2]} 29. Bxd1 {[%clk 0:01:42.8]}
29... Qf5+ {[%clk 0:00:20.1]} 30. Bc2 {[%clk 0:01:42.7]} 30... Qh5 {[%clk
0:00:17.7]} 31. Qd4 {[%clk 0:01:38]} 31... Bxe5 {[%clk 0:00:13.1]} 32. fxe5
{[%clk 0:01:38.9]} 32... Rad8 {[%clk 0:00:06.1]} 33. Qe4 {[%clk 0:01:22.3]}
33... Rd7 {[%clk 0:00:03.8]} 34. g4 {[%clk 0:01:20.8]} 34... Qh4 {[%clk
0:00:03.4]} 35. Rf1 {[%clk 0:01:10.1]} 35... Rde7 {[%clk 0:00:01.4]} 36. e6
{[%clk 0:01:09.9]} 36... g6 {[%clk 0:00:01.1]} 37. Qe5+ {[%clk 0:01:09.4]} 1-0

[Event "Early-Titled-Tuesday-Blitz-July-09-2024"]
[Site "Chess.com"]
[Date "2024.07.09"]
[Round "6"]
[White "Juicy_Fork"]
[Black "kadirsoria"]
[Result "1-0"]
[WhiteElo "2454"]
[BlackElo "2233"]
[TimeControl "180+1"]
[EndTime "9:08:02 PDT"]
[Termination "Juicy_Fork won on time"]

1. Nc3 {[%clk 0:03:00.3]} 1... c5 {[%clk 0:02:57.8]} 2. Nf3 {[%clk 0:02:56.3]}
2... g6 {[%clk 0:02:57.1]} 3. d4 {[%clk 0:02:49.5]} 3... cxd4 {[%clk 0:02:56.8]}
4. Qxd4 {[%clk 0:02:49.4]} 4... Nf6 {[%clk 0:02:56.6]} 5. Bg5 {[%clk 0:02:49.3]}
5... Nc6 {[%clk 0:02:56]} 6. Qd2 {[%clk 0:02:45.7]} 6... Bg7 {[%clk 0:02:55]} 7.
Bh6 {[%clk 0:02:44.9]} 7... Bxh6 {[%clk 0:02:48.9]} 8. Qxh6 {[%clk 0:02:42.4]}
8... Qb6 {[%clk 0:02:49.4]} 9. O-O-O {[%clk 0:02:31.3]} 9... Qxf2 {[%clk
0:02:30.1]} 10. e4 {[%clk 0:02:13]} 10... d6 {[%clk 0:02:01.3]} 11. Bb5 {[%clk
0:01:49]} 11... Bg4 {[%clk 0:00:32.8]} 12. Nd5 {[%clk 0:01:36.7]} 12... O-O-O
{[%clk 0:00:14.6]} 13. Qf4 {[%clk 0:01:20.1]} 13... Bxf3 {[%clk 0:00:11.7]} 14.
Bxc6 {[%clk 0:01:11.9]} 14... bxc6 {[%clk 0:00:09]} 15. Nxe7+ {[%clk 0:01:11.1]}
15... Kb7 {[%clk 0:00:05.6]} 16. Rhf1 {[%clk 0:00:53.3]} 16... Qc5 {[%clk
0:00:03.1]} 17. Rxf3 {[%clk 0:00:51.7]} 17... Nh5 {[%clk 0:00:02.5]} 18. Qxf7
{[%clk 0:00:48.7]} 18... Rhf8 {[%clk 0:00:02.3]} 19. Qxh7 {[%clk 0:00:34.4]}
19... Rxf3 {[%clk 0:00:01.6]} 20. Nd5+ {[%clk 0:00:34.4]} 1-0

[Event "Early-Titled-Tuesday-Blitz-July-09-2024"]
[Site "Chess.com"]
[Date "2024.07.09"]
[Round "6"]
[White "chessdjw"]
[Black "Stanbad1"]
[Result "0-1"]
[WhiteElo "2750"]
[BlackElo "2611"]
[TimeControl "180+1"]
[EndTime "9:08:03 PDT"]
[Termination "Stanbad1 won on time"]

1. c4 {[%clk 0:03:00.9]} 1... Nf6 {[%clk 0:02:59.8]} 2. Nc3 {[%clk 0:03:01]}
2... g6 {[%clk 0:03:00.3]} 3. d4 {[%clk 0:03:00.5]} 3... d6 {[%clk 0:03:00.7]}
4. e4 {[%clk 0:03:00.5]} 4... Bg7 {[%clk 0:03:01.3]} 5. Be2 {[%clk 0:02:57.4]}
5... O-O {[%clk 0:02:58.6]} 6. Bg5 {[%clk 0:02:57.9]} 6... c5 {[%clk 0:02:58.5]}
7. d5 {[%clk 0:02:56.7]} 7... b5 {[%clk 0:02:56.9]} 8. cxb5 {[%clk 0:02:55.5]}
8... a6 {[%clk 0:02:57.5]} 9. a4 {[%clk 0:02:54.1]} 9... axb5 {[%clk 0:02:57.1]}
10. Bxb5 {[%clk 0:02:53.8]} 10... Na6 {[%clk 0:02:55.6]} 11. Nge2 {[%clk
0:02:51.4]} 11... Nc7 {[%clk 0:02:54.6]} 12. O-O {[%clk 0:02:46.2]} 12... Rb8
{[%clk 0:02:52.7]} 13. Qd3 {[%clk 0:02:35.9]} 13... Ng4 {[%clk 0:02:49.1]} 14.
f4 {[%clk 0:02:24.5]} 14... Bd7 {[%clk 0:02:32.1]} 15. h3 {[%clk 0:02:13]} 15...
Nf6 {[%clk 0:02:30.6]} 16. Kh1 {[%clk 0:01:42.9]} 16... h6 {[%clk 0:02:01.6]}
17. Bh4 {[%clk 0:01:41.1]} 17... Nxb5 {[%clk 0:01:56.1]} 18. Nxb5 {[%clk
0:01:39.2]} 18... Bxb5 {[%clk 0:01:54.5]} 19. axb5 {[%clk 0:01:39]} 19... Ne8
{[%clk 0:01:52.8]} 20. Nc3 {[%clk 0:01:34.2]} 20... Nc7 {[%clk 0:01:51.3]} 21.
f5 {[%clk 0:01:10.5]} 21... g5 {[%clk 0:01:49.7]} 22. Bg3 {[%clk 0:01:08.5]}
22... Bxc3 {[%clk 0:01:49.8]} 23. bxc3 {[%clk 0:01:08.3]} 23... f6 {[%clk
0:01:48.6]} 24. c4 {[%clk 0:01:07.5]} 24... Na8 {[%clk 0:01:45.7]} 25. Ra6
{[%clk 0:01:05.4]} 25... Nb6 {[%clk 0:01:45.5]} 26. Rfa1 {[%clk 0:01:05.9]}
26... Nd7 {[%clk 0:01:45.5]} 27. Qc3 {[%clk 0:00:59.4]} 27... Qc7 {[%clk
0:01:42]} 28. Ra7 {[%clk 0:00:49.9]} 28... Rb7 {[%clk 0:01:39.9]} 29. Qa5 {[%clk
0:00:48]} 29... Qxa5 {[%clk 0:01:33.6]} 30. R1xa5 {[%clk 0:00:48.9]} 30... Rfb8
{[%clk 0:01:32.7]} 31. Rxb7 {[%clk 0:00:42.7]} 31... Rxb7 {[%clk 0:01:32.2]} 32.
Ra8+ {[%clk 0:00:43]} 32... Kf7 {[%clk 0:01:30.2]} 33. Ra3 {[%clk 0:00:17.2]}
33... Nb6 {[%clk 0:01:29.8]} 34. Rc3 {[%clk 0:00:17.4]} 34... Ra7 {[%clk
0:01:30.3]} 35. Kg1 {[%clk 0:00:09.5]} 35... Ra4 {[%clk 0:01:29.8]} 36. Be1
{[%clk 0:00:08]} 36... Ra1 {[%clk 0:01:28.1]} 37. Kf2 {[%clk 0:00:07.8]} 37...
Ra4 {[%clk 0:01:27.9]} 38. Ke2 {[%clk 0:00:06.1]} 38... Nxc4 {[%clk 0:01:27.9]}
39. Rb3 {[%clk 0:00:04.7]} 39... Nb6 {[%clk 0:01:26.3]} 40. Kf3 {[%clk
0:00:03.7]} 40... h5 {[%clk 0:01:22.9]} 41. Bf2 {[%clk 0:00:01.8]} 41... Nc4
{[%clk 0:01:17.4]} 42. b6 {[%clk 0:00:01.5]} 42... Nd2+ {[%clk 0:01:17.2]} 43.
Ke2 {[%clk 0:00:01]} 43... Nxb3 {[%clk 0:01:17.5]} 0-1

[Event "Early-Titled-Tuesday-Blitz-July-09-2024"]
[Site "Chess.com"]
[Date "2024.07.09"]
[Round "6"]
[White "elis06"]
[Black "esskeettit"]
[Result "0-1"]
[WhiteElo "2408"]
[BlackElo "2537"]
[TimeControl "180+1"]
[EndTime "9:08:03 PDT"]
[Termination "esskeettit won by checkmate"]

1. d4 {[%clk 0:03:00.9]} 1... d5 {[%clk 0:02:59.5]} 2. c4 {[%clk 0:03:00.6]}
2... dxc4 {[%clk 0:03:00.4]} 3. Nf3 {[%clk 0:02:59.4]} 3... Nf6 {[%clk
0:03:00.4]} 4. e3 {[%clk 0:02:59.5]} 4... e6 {[%clk 0:02:55.4]} 5. Bxc4 {[%clk
0:02:59.3]} 5... Be7 {[%clk 0:02:47.1]} 6. O-O {[%clk 0:02:58.4]} 6... O-O
{[%clk 0:02:47.7]} 7. Nc3 {[%clk 0:02:57.5]} 7... b6 {[%clk 0:02:48.2]} 8. Re1
{[%clk 0:02:51.9]} 8... Bb7 {[%clk 0:02:48.6]} 9. Qe2 {[%clk 0:02:45.9]} 9... c5
{[%clk 0:02:47.8]} 10. dxc5 {[%clk 0:02:40.8]} 10... Bxc5 {[%clk 0:02:48.7]} 11.
b3 {[%clk 0:02:35.8]} 11... Nbd7 {[%clk 0:02:45.9]} 12. Bb2 {[%clk 0:02:35.1]}
12... Rc8 {[%clk 0:02:41.3]} 13. Rad1 {[%clk 0:02:34.2]} 13... Qe7 {[%clk
0:02:41.8]} 14. e4 {[%clk 0:02:19.3]} 14... Ng4 {[%clk 0:02:37.2]} 15. Rf1
{[%clk 0:02:03.4]} 15... Nde5 {[%clk 0:02:23.4]} 16. Nxe5 {[%clk 0:02:02]} 16...
Nxe5 {[%clk 0:02:24.3]} 17. Bb5 {[%clk 0:01:57.2]} 17... Rfd8 {[%clk 0:02:14.9]}
18. Kh1 {[%clk 0:01:56.4]} 18... Qh4 {[%clk 0:02:11.1]} 19. h3 {[%clk
0:01:46.7]} 19... Ng6 {[%clk 0:02:02.8]} 20. Qf3 {[%clk 0:01:34.5]} 20... a6
{[%clk 0:01:38.2]} 21. Be2 {[%clk 0:01:21.5]} 21... Rxd1 {[%clk 0:01:27.2]} 22.
Bxd1 {[%clk 0:01:15.3]} 22... Bd4 {[%clk 0:01:17.6]} 23. Bc2 {[%clk 0:01:09]}
23... Qf6 {[%clk 0:01:10.3]} 24. Qxf6 {[%clk 0:00:58.6]} 24... gxf6 {[%clk
0:01:07.7]} 25. Rd1 {[%clk 0:00:50.6]} 25... Bxc3 {[%clk 0:01:06.5]} 26. Bxc3
{[%clk 0:00:50.7]} 26... Rxc3 {[%clk 0:01:06.9]} 27. Rd7 {[%clk 0:00:49.4]}
27... Bc6 {[%clk 0:00:59.7]} 28. Rd8+ {[%clk 0:00:48.7]} 28... Kg7 {[%clk
0:01:00]} 29. Bd3 {[%clk 0:00:47.7]} 29... Ne5 {[%clk 0:00:58.7]} 30. Bf1 {[%clk
0:00:45.7]} 30... Bxe4 {[%clk 0:00:58.4]} 31. Bxa6 {[%clk 0:00:45.2]} 31... Rc2
{[%clk 0:00:55.9]} 32. a4 {[%clk 0:00:44.2]} 32... Rxf2 {[%clk 0:00:55]} 33. h4
{[%clk 0:00:43.3]} 33... Rxg2 {[%clk 0:00:53]} 34. h5 {[%clk 0:00:43.5]} 34...
Rg5+ {[%clk 0:00:44.5]} 35. Kh2 {[%clk 0:00:43.5]} 35... Nf3+ {[%clk 0:00:44.5]}
36. Kh3 {[%clk 0:00:43.8]} 36... f5 {[%clk 0:00:34]} 37. h6+ {[%clk 0:00:43]}
37... Kxh6 {[%clk 0:00:33.1]} 38. Rh8 {[%clk 0:00:42.7]} 38... f4 {[%clk
0:00:31.7]} 39. b4 {[%clk 0:00:41.6]} 39... Rg3# {[%clk 0:00:31.5]} 0-1

[Event "Early-Titled-Tuesday-Blitz-July-09-2024"]
[Site "Chess.com"]
[Date "2024.07.09"]
[Round "6"]
[White "JunjiCol"]
[Black "chessbaerchen"]
[Result "0-1"]
[WhiteElo "2366"]
[BlackElo "2651"]
[TimeControl "180+1"]
[EndTime "9:08:06 PDT"]
[Termination "chessbaerchen won by checkmate"]

1. e4 {[%clk 0:03:00.9]} 1... e6 {[%clk 0:03:00.4]} 2. c4 {[%clk 0:02:59.1]}
2... d5 {[%clk 0:02:59.9]} 3. cxd5 {[%clk 0:02:59.3]} 3... exd5 {[%clk
0:03:00.7]} 4. Qa4+ {[%clk 0:02:59.1]} 4... Bd7 {[%clk 0:02:59.3]} 5. Qb3 {[%clk
0:02:59.3]} 5... Bc6 {[%clk 0:02:59.9]} 6. d4 {[%clk 0:02:58.7]} 6... Qd7 {[%clk
0:02:39.2]} 7. Nc3 {[%clk 0:02:54.9]} 7... Nf6 {[%clk 0:02:38.8]} 8. e5 {[%clk
0:02:54.8]} 8... Ne4 {[%clk 0:02:38.2]} 9. Nxe4 {[%clk 0:02:53.5]} 9... dxe4
{[%clk 0:02:39.1]} 10. Bc4 {[%clk 0:02:53.6]} 10... b5 {[%clk 0:02:34.9]} 11. e6
{[%clk 0:02:47.9]} 11... fxe6 {[%clk 0:02:30.8]} 12. Bxe6 {[%clk 0:02:48.6]}
12... Qxd4 {[%clk 0:02:31]} 13. Bf7+ {[%clk 0:02:33.8]} 13... Kd8 {[%clk
0:02:31]} 14. Bg5+ {[%clk 0:02:33.5]} 14... Kc8 {[%clk 0:02:31.2]} 15. Qh3+
{[%clk 0:02:08.5]} 15... Bd7 {[%clk 0:02:26.8]} 16. Qh4 {[%clk 0:01:53.6]} 16...
Bb4+ {[%clk 0:02:23.9]} 17. Kf1 {[%clk 0:01:53.7]} 17... Rf8 {[%clk 0:02:19.7]}
18. Qh5 {[%clk 0:01:44.6]} 18... g6 {[%clk 0:02:16.1]} 19. Qxh7 {[%clk
0:01:43.4]} 19... Bc5 {[%clk 0:02:02]} 20. Be3 {[%clk 0:01:17.8]} 20... Qd3+
{[%clk 0:01:56.5]} 21. Ne2 {[%clk 0:01:17.4]} 21... Bxe3 {[%clk 0:01:55.6]} 22.
fxe3 {[%clk 0:01:13.2]} 22... Nc6 {[%clk 0:01:50.8]} 23. Kf2 {[%clk 0:01:03.7]}
23... Ne5 {[%clk 0:01:49.2]} 24. Rad1 {[%clk 0:00:57.6]} 24... Rxf7+ {[%clk
0:01:18.7]} 25. Qxf7 {[%clk 0:00:57]} 25... Nxf7 {[%clk 0:01:19.6]} 26. Rxd3
{[%clk 0:00:57.2]} 26... exd3 {[%clk 0:01:20.3]} 27. Nf4 {[%clk 0:00:57.8]}
27... Bf5 {[%clk 0:01:20.2]} 28. h3 {[%clk 0:00:56.7]} 28... g5 {[%clk
0:01:17.3]} 29. Nd5 {[%clk 0:00:53.4]} 29... Kb7 {[%clk 0:01:16.6]} 30. h4
{[%clk 0:00:48.9]} 30... g4 {[%clk 0:01:13.5]} 31. h5 {[%clk 0:00:48.1]} 31...
Rh8 {[%clk 0:01:11.4]} 32. Kg3 {[%clk 0:00:46.4]} 32... Nd6 {[%clk 0:01:08.2]}
33. Kf4 {[%clk 0:00:46.1]} 33... Be4 {[%clk 0:01:06.5]} 34. Nf6 {[%clk
0:00:41.1]} 34... Bxg2 {[%clk 0:01:05.6]} 35. Rd1 {[%clk 0:00:40.9]} 35... Rf8
{[%clk 0:01:01.2]} 36. Ke5 {[%clk 0:00:31.1]} 36... Nf7+ {[%clk 0:01:00.7]} 37.
Ke6 {[%clk 0:00:28.9]} 37... Ng5+ {[%clk 0:00:56.1]} 38. Ke7 {[%clk 0:00:28.7]}
38... Rf7+ {[%clk 0:00:55.8]} 39. Ke8 {[%clk 0:00:19.4]} 39... Bc6+ {[%clk
0:00:55]} 40. Kd8 {[%clk 0:00:17.6]} 40... Rxf6 {[%clk 0:00:55.1]} 41. Rxd3
{[%clk 0:00:16.8]} 41... Rf7 {[%clk 0:00:55.6]} 42. e4 {[%clk 0:00:13.7]} 42...
Ne6# {[%clk 0:00:55.8]} 0-1

[Event "Early-Titled-Tuesday-Blitz-July-09-2024"]
[Site "Chess.com"]
[Date "2024.07.09"]
[Round "6"]
[White "profedechess93"]
[Black "MdChess1734"]
[Result "1-0"]
[WhiteElo "2621"]
[BlackElo "2428"]
[TimeControl "180+1"]
[EndTime "9:08:10 PDT"]
[Termination "profedechess93 won by resignation"]

1. e4 {[%clk 0:03:00.9]} 1... c6 {[%clk 0:02:54]} 2. d4 {[%clk 0:02:56.9]} 2...
d5 {[%clk 0:02:54.3]} 3. Nc3 {[%clk 0:02:56.5]} 3... dxe4 {[%clk 0:02:53.6]} 4.
Nxe4 {[%clk 0:02:57.3]} 4... Nf6 {[%clk 0:02:54.2]} 5. Nxf6+ {[%clk 0:02:56.4]}
5... exf6 {[%clk 0:02:54.6]} 6. c3 {[%clk 0:02:57.2]} 6... Bd6 {[%clk
0:02:51.9]} 7. Bd3 {[%clk 0:02:57]} 7... O-O {[%clk 0:02:49.6]} 8. Qc2 {[%clk
0:02:56.5]} 8... Re8+ {[%clk 0:02:50]} 9. Ne2 {[%clk 0:02:55.8]} 9... h5 {[%clk
0:02:50.7]} 10. Be3 {[%clk 0:02:54.5]} 10... Nd7 {[%clk 0:02:51]} 11. O-O-O
{[%clk 0:02:55]} 11... Nf8 {[%clk 0:02:51]} 12. h3 {[%clk 0:02:55.6]} 12... Be6
{[%clk 0:02:49]} 13. g4 {[%clk 0:02:55.6]} 13... h4 {[%clk 0:02:49.2]} 14. Rhg1
{[%clk 0:02:53.7]} 14... g6 {[%clk 0:02:29.6]} 15. Kb1 {[%clk 0:02:35.3]} 15...
b5 {[%clk 0:02:26.5]} 16. d5 {[%clk 0:02:06.6]} 16... Bxd5 {[%clk 0:01:55.9]}
17. Nd4 {[%clk 0:01:57.3]} 17... a6 {[%clk 0:01:48.2]} 18. Bh6 {[%clk
0:01:16.7]} 18... c5 {[%clk 0:01:43.5]} 19. Nf5 {[%clk 0:01:11.8]} 19... gxf5
{[%clk 0:01:07.4]} 20. gxf5+ {[%clk 0:01:06.5]} 20... Kh7 {[%clk 0:01:06.5]} 21.
Qd2 {[%clk 0:00:49.4]} 21... Bf3 {[%clk 0:00:33.9]} 22. Bg7 {[%clk 0:00:43.6]}
22... Ng6 {[%clk 0:00:19.8]} 23. Qh6+ {[%clk 0:00:38.7]} 23... Kg8 {[%clk
0:00:19.7]} 24. fxg6 {[%clk 0:00:36.4]} 24... fxg6 {[%clk 0:00:19.2]} 25. Bxg6
{[%clk 0:00:30]} 25... Be4+ {[%clk 0:00:09.3]} 26. Bxe4 {[%clk 0:00:29.5]} 26...
Rxe4 {[%clk 0:00:09.9]} 27. Bxf6+ {[%clk 0:00:29.5]} 1-0

[Event "Early-Titled-Tuesday-Blitz-July-09-2024"]
[Site "Chess.com"]
[Date "2024.07.09"]
[Round "6"]
[White "GeorgiosSouleidis"]
[Black "YaWaleriy"]
[Result "1-0"]
[WhiteElo "2652"]
[BlackElo "2427"]
[TimeControl "180+1"]
[EndTime "9:08:14 PDT"]
[Termination "GeorgiosSouleidis won on time"]

1. e4 {[%clk 0:03:00.9]} 1... e6 {[%clk 0:02:59.8]} 2. d4 {[%clk 0:03:00.5]}
2... d5 {[%clk 0:02:59.7]} 3. Nc3 {[%clk 0:03:00.9]} 3... dxe4 {[%clk
0:02:59.1]} 4. Nxe4 {[%clk 0:03:01.8]} 4... Nd7 {[%clk 0:02:59.5]} 5. Nf3 {[%clk
0:03:01.1]} 5... Ngf6 {[%clk 0:02:59.6]} 6. Bg5 {[%clk 0:03:00.5]} 6... Be7
{[%clk 0:02:58.2]} 7. Nxf6+ {[%clk 0:02:59.9]} 7... Nxf6 {[%clk 0:02:57.6]} 8.
Bd3 {[%clk 0:02:53.6]} 8... c5 {[%clk 0:02:57.2]} 9. dxc5 {[%clk 0:02:45.2]}
9... Bxc5 {[%clk 0:02:56.2]} 10. Qe2 {[%clk 0:02:42.8]} 10... O-O {[%clk
0:02:52.7]} 11. O-O-O {[%clk 0:02:39.9]} 11... Qc7 {[%clk 0:02:34.5]} 12. Bxf6
{[%clk 0:02:32.6]} 12... Qf4+ {[%clk 0:02:31.7]} 13. Kb1 {[%clk 0:02:28.5]}
13... Qxf6 {[%clk 0:02:32.1]} 14. Qe4 {[%clk 0:02:24.7]} 14... g6 {[%clk
0:02:30.8]} 15. h4 {[%clk 0:02:20.9]} 15... Rd8 {[%clk 0:01:53.5]} 16. h5 {[%clk
0:02:18]} 16... Bf8 {[%clk 0:01:46.2]} 17. hxg6 {[%clk 0:02:15.9]} 17... hxg6
{[%clk 0:01:45.4]} 18. Ne5 {[%clk 0:02:06.2]} 18... Bg7 {[%clk 0:01:41.1]} 19.
f4 {[%clk 0:02:05.7]} 19... Bd7 {[%clk 0:01:14.7]} 20. c3 {[%clk 0:01:59.7]}
20... Bc6 {[%clk 0:01:09.3]} 21. Qe3 {[%clk 0:01:59.5]} 21... Bxg2 {[%clk
0:00:51.3]} 22. Rhg1 {[%clk 0:01:46.7]} 22... Bc6 {[%clk 0:00:43.8]} 23. Nxg6
{[%clk 0:01:22.1]} 23... fxg6 {[%clk 0:00:24.6]} 24. Rxg6 {[%clk 0:01:21.2]}
24... Rxd3 {[%clk 0:00:22.7]} 25. Qxd3 {[%clk 0:01:18.8]} 25... Qxf4 {[%clk
0:00:16.2]} 26. Rxg7+ {[%clk 0:00:42.1]} 26... Kxg7 {[%clk 0:00:15]} 27. Rg1+
{[%clk 0:00:42.2]} 27... Kf6 {[%clk 0:00:01.1]} 28. Rf1 {[%clk 0:00:39.2]} 1-0

[Event "Early-Titled-Tuesday-Blitz-July-09-2024"]
[Site "Chess.com"]
[Date "2024.07.09"]
[Round "6"]
[White "KVAIDAN"]
[Black "ploxoi"]
[Result "0-1"]
[WhiteElo "2318"]
[BlackElo "2475"]
[TimeControl "180+1"]
[EndTime "9:08:14 PDT"]
[Termination "ploxoi won by resignation"]

1. f4 {[%clk 0:03:00.2]} 1... d5 {[%clk 0:03:00.1]} 2. Nf3 {[%clk 0:03:00.6]}
2... Nf6 {[%clk 0:03:00.6]} 3. e3 {[%clk 0:03:01.1]} 3... c5 {[%clk 0:03:01]} 4.
Be2 {[%clk 0:03:01]} 4... Nc6 {[%clk 0:03:00.8]} 5. O-O {[%clk 0:03:01.6]} 5...
Bg4 {[%clk 0:03:00.3]} 6. b3 {[%clk 0:03:00.7]} 6... e6 {[%clk 0:03:00.5]} 7.
Bb2 {[%clk 0:03:01.2]} 7... Bd6 {[%clk 0:02:56.5]} 8. d3 {[%clk 0:03:01.5]} 8...
O-O {[%clk 0:02:56.3]} 9. Ne5 {[%clk 0:03:01.8]} 9... Bxe2 {[%clk 0:02:56.1]}
10. Qxe2 {[%clk 0:03:02.3]} 10... Rc8 {[%clk 0:02:53.4]} 11. Nd2 {[%clk
0:03:01.8]} 11... Nd7 {[%clk 0:02:51.3]} 12. Nxc6 {[%clk 0:03:00.7]} 12... Rxc6
{[%clk 0:02:51.1]} 13. Rf3 {[%clk 0:03:00.3]} 13... e5 {[%clk 0:02:49.9]} 14.
Rh3 {[%clk 0:02:55]} 14... Re8 {[%clk 0:02:45.1]} 15. Qh5 {[%clk 0:02:53.1]}
15... Nf6 {[%clk 0:02:45]} 16. Qh4 {[%clk 0:02:51.1]} 16... h6 {[%clk
0:02:41.6]} 17. f5 {[%clk 0:02:46.4]} 17... Be7 {[%clk 0:02:31.6]} 18. Qg3
{[%clk 0:02:41.3]} 18... Nd7 {[%clk 0:01:38.3]} 19. e4 {[%clk 0:02:31.6]} 19...
d4 {[%clk 0:00:53.8]} 20. a4 {[%clk 0:02:21.3]} 20... Bg5 {[%clk 0:00:53.7]} 21.
Nc4 {[%clk 0:02:21.1]} 21... b6 {[%clk 0:00:51.9]} 22. Rf1 {[%clk 0:02:17.1]}
22... a6 {[%clk 0:00:50.8]} 23. f6 {[%clk 0:02:05]} 23... Rxf6 {[%clk
0:00:49.3]} 24. Rxf6 {[%clk 0:01:58.8]} 24... Qxf6 {[%clk 0:00:50.2]} 25. Qf3
{[%clk 0:01:56.2]} 25... Qe6 {[%clk 0:00:43.2]} 26. Rg3 {[%clk 0:01:56.2]} 26...
b5 {[%clk 0:00:42.8]} 27. Na3 {[%clk 0:01:53.2]} 27... Rb8 {[%clk 0:00:41.3]}
28. axb5 {[%clk 0:01:51.2]} 28... axb5 {[%clk 0:00:41.9]} 29. Rg4 {[%clk
0:01:51.1]} 29... Nf6 {[%clk 0:00:40.3]} 30. Rg3 {[%clk 0:01:48.7]} 30... Ne8
{[%clk 0:00:40.7]} 31. Rg4 {[%clk 0:01:46.7]} 31... Nf6 {[%clk 0:00:38.9]} 32.
Rg3 {[%clk 0:01:46.6]} 32... Bf4 {[%clk 0:00:39.3]} 33. Rh3 {[%clk 0:01:44.5]}
33... Ne8 {[%clk 0:00:39.8]} 34. g3 {[%clk 0:01:39.2]} 34... Be3+ {[%clk
0:00:39.6]} 35. Kg2 {[%clk 0:01:38.4]} 35... Nd6 {[%clk 0:00:40.3]} 36. Rh5
{[%clk 0:01:38.3]} 36... c4 {[%clk 0:00:29.3]} 37. c3 {[%clk 0:01:26]} 37...
cxd3 {[%clk 0:00:17.2]} 38. cxd4 {[%clk 0:01:25.7]} 38... exd4 {[%clk
0:00:18.1]} 39. Rd5 {[%clk 0:01:23.4]} 39... Nxe4 {[%clk 0:00:15.7]} 40. Rxb5
{[%clk 0:01:18.4]} 40... Rxb5 {[%clk 0:00:15.1]} 41. Nxb5 {[%clk 0:01:18.7]}
41... Qxb3 {[%clk 0:00:13.1]} 42. Qxe4 {[%clk 0:01:19.1]} 42... Qxb2+ {[%clk
0:00:11.8]} 43. Kf3 {[%clk 0:01:19.4]} 43... Qxb5 {[%clk 0:00:11.5]} 44. Qg4
{[%clk 0:01:19.4]} 44... Qc6+ {[%clk 0:00:11]} 45. Qe4 {[%clk 0:01:15.7]} 45...
Qxe4+ {[%clk 0:00:11.5]} 46. Kxe4 {[%clk 0:01:15.6]} 46... d2 {[%clk 0:00:12.4]}
0-1